Cogmind - Beta 13 @@@ ROGUE MODE // 2024.03.13 @ 11:51:11 Player: Puck Result: Self-destructed Performance ------------- Evolutions (1) 500 Regions Visited (2) 400 Robots Destroyed (13) 65 Value Destroyed (287) 287 Prototype IDs (2) 40 Alien Tech Used (0) 0 Bonus (0) 0 TOTAL SCORE: 1292 Bonus ------- None Cogmind --------- Core Integrity 370/400 Matter 245/300 Energy 125/125 System Corruption 0% Temperature Cool (0) Movement Flying (117) Ox1 Location -9/Materials Parts ------- > --- POWER (1) -------- Light Ion Engine > --- PROPULSION (3) --- Flight Unit Flight Unit > --- UTILITY (3) ------ Medium Storage Unit Weight Redist. System Visual Processing Unit > --- WEAPON (2) ------- Axe > --- INVENTORY (10) --- Ion Engine Wheel Wheel Improved Heat Sink High-capacity Storage Unit Sensor Array Light Armor Plating Beam Cannon Peak State ------------ > --- POWER ------------ Light Ion Engine > --- PROPULSION ------- Flight Unit Flight Unit Flight Unit > --- UTILITY ---------- Medium Storage Unit Weight Redist. System Visual Processing Unit > --- WEAPON ----------- Axe > --- INVENTORY -------- Ion Engine Wheel Wheel Improved Heat Sink High-capacity Storage Unit Sensor Array Light Armor Plating Beam Cannon [Rating: 13] Favorites ----------- Power Ion Engine Engine Ion Engine Propulsion Aluminum Leg Leg Aluminum Leg Wheel Wheel Flight Unit Flight Unit Utility Medium Storage Unit Device Weight Redist. System Storage Medium Storage Unit Processor Visual Processing Unit Weapon Light Assault Rifle Energy Gun Medium Laser Energy Cannon Beam Cannon Ballistic Gun Light Assault Rifle Slashing Weapon Axe Build | -11 -10 -9 ------- Run | Yrd Mat Mat Slots Evolved 2 | . . 2 Power . | . . . Propulsion 1 | . . 1 Utility 1 | . . 1 Weapon . | . . . Parts Attached 14 | 1 7 6 Power 1 | . . 1 Engine 1 | . . 1 Core . | . . . Reactor . | . . . Propulsion 6 | . 3 3 Treads . | . . . Leg 1 | . 1 . Wheel 2 | . 2 . Hover . | . . . Flight 3 | . . 3 Utility 3 | . 2 1 Device 1 | . . 1 Storage 1 | . 1 . Processor 1 | . 1 . Hackware . | . . . Protection . | . . . Artifact . | . . . Weapon 4 | 1 2 1 Energy Gun 1 | . 1 . Energy Cannon 1 | . 1 . Ballistic Gun 1 | 1 . . Ballistic Cannon . | . . . Launcher . | . . . Special Weapon . | . . . Impact Weapon . | . . . Slashing Weapon 1 | . . 1 Piercing Weapon . | . . . Special Melee Weapon . | . . . Unidentified Prototypes . | . . . Parts Lost 7 | . 6 1 Power . | . . . Propulsion 4 | . 3 1 Utility . | . . . Weapon 3 | . 3 . Highest Loss Streak 3 | . 3 1 To Critical Strikes . | . . . Average Slot Usage (%) 90 | . 90 88 Engine 13 | . 14 11 Leg 18 | . 19 . Wheel 7 | . 7 . Flight 2 | . . 33 Storage 13 | . 14 11 Processor 10 | . 10 11 Energy Cannon 5 | . 5 1 Ballistic Gun 15 | . 16 . Naked Turns . | . . . Heaviest Build 19 | 13 19 18 Greatest Support 20 | 20 20 18 Greatest Overweight (x) 1 | . 1 . Average Overweight (x) . | . . . Largest Inventory Capacity 10 | 8 10 10 Average Capacity 9 | 8 9 10 Most Carried 9 | 5 9 8 Average Carried 5 | 4 5 7 Final Capacity 10 | 8 10 10 Final Carried 9 | 4 9 8 Class Distribution -------------------- 93% | Mutant 6% | Scavenger-Mutant Dominant Class ---------------- Mutant | -10/Materials Scavenger-Mutant | -9/Materials Resources | -11 -10 -9 ----------- Run | Yrd Mat Mat Matter Collected 377 | 200 177 . Remotely . | . . . Salvage Created 411 | . 411 . Parts 26 | . 26 . Haulers Intercepted 2 | . 2 . Recyclers Shooed 1 | . 1 . Parts Field Recycled . | . . . Retrieved Matter . | . . . Parts Self-Destructed . | . . . Prevented . | . . . Kills | -11 -10 -9 ------- Run | Yrd Mat Mat Combat Hostiles Destroyed 7 | . 7 . Guns 4 | . 4 . Cannons 3 | . 3 . Classes Destroyed 6 | . 6 . Hauler 2 | . 2 . Mechanic 1 | . 1 . Operator 1 | . 1 . Watcher 2 | . 2 . Swarmer 3 | . 3 . Grunt 4 | . 4 . Best Kill Streak 3 | . 3 . Combat Bots Only 3 | . 3 . Max Kills in Single Turn 1 | . 1 . Gunslinging . | . . . Exploded . | . . . Melee . | . . . Uniques/NPCs Destroyed . | . . . Combat | -11 -10 -9 -------- Run | Yrd Mat Mat Hostile Shots Fired 103 | . 81 22 Missed 31 | . 18 13 Damage Taken 893 | . 764 129 Core 202 | . 172 30 Absorbed by Shields . | . . . Core Remaining (%) 65 | 100 31 . Volleys Fired 72 | . 72 . Largest 2 | . 2 . Hottest 80 | . 80 . Shots Fired 117 | . 117 . Gun 89 | . 89 . Cannon 28 | . 28 . Launcher . | . . . Special . | . . . Kinetic 77 | . 77 . Thermal 40 | . 40 . Explosive . | . . . Electromagnetic . | . . . Robot Hit Streak 9 | . 9 . Robot Miss Streak 3 | . 3 . Penetration Max . | . . . Secondary Targets 2 | . 2 . Max Gunslinging Chain 1 | . 1 . Shots Hit Robots 79 | . 79 . Core Hits 25 | . 25 . Critical Kills . | . . . Critical Parts Destroyed . | . . . Critical Strikes 3 | . 3 . Burn 3 | . 3 . Melee Attacks 1 | . . 1 Impact . | . . . Slashing 1 | . . 1 Piercing . | . . . Sneak Attacks . | . . . Combat Hostiles . | . . . Follow-up Attacks . | . . . Damage Inflicted 911 | . 911 . Guns 580 | . 580 . Cannons 331 | . 331 . Explosions . | . . . Melee . | . . . Ramming . | . . . Kinetic 478 | . 478 . Thermal 433 | . 433 . Explosive . | . . . Electromagnetic . | . . . Impact . | . . . Slashing . | . . . Piercing . | . . . Highest Corruption . | . . . Average Corruption . | . . . Corruption Purged . | . . . Corruption Blocked . | . . . Overload Shots . | . . . Overflow Damage . | . . . Projectiles . | . . . Explosions . | . . . Melee . | . . . Knockbacks . | . . . Impact . | . . . Kinetic . | . . . Secondary . | . . . Self-Inflicted Damage . | . . . Shots . | . . . Rammed . | . . . Targets Rammed . | . . . Kicked . | . . . Crushed . | . . . Highest Temperature 180 | . 180 16 Average Temperature 63 | . 64 10 Received Heat Transfer 438 | . 384 54 Siege Activations . | . . . Robots Corrupted . | . . . Combat Hostiles . | . . . Parts Fried . | . . . Impact Corruptions . | . . . Robots Melted . | . . . Combat Hostiles . | . . . Parts Melted 1 | . 1 . Heat Transferred 1221 | . 1221 . Parts Sabotaged . | . . . Parts Stolen . | . . . Parts Stripped . | . . . Power Chain Reactions . | . . . Alert | -11 -10 -9 ------- Run | Yrd Mat Mat Peak Influence 165 | . 157 165 Initial 45 | . . 45 Average 50 | . 47 99 Maximum Alert Level . | . . . Low Security (%) 100 | 100 100 100 Level 1 . | . . . Level 2 . | . . . Level 3 . | . . . Level 4 . | . . . Level 5 . | . . . High Security . | . . . Max Security . | . . . Squads Dispatched 1 | . 1 . Investigation 1 | . 1 . Extermination . | . . . Reinforcement . | . . . Assault . | . . . Garrison . | . . . Intercept . | . . . Searches Triggered . | . . . Construction Impeded . | . . . Haulers Reinforced . | . . . Active Scanning Responses . | . . . Cargo Convoy Interrupts . | . . . Stealth | -11 -10 -9 --------- Run | Yrd Mat Mat Distress Signals 1 | . . 1 Communications Jammed . | . . . Distress Signals . | . . . Times Spotted 28 | . 18 10 Peak Tracking Total 11 | . 5 11 Tactical Retreats 1 | . 1 . Traps | -11 -10 -9 ------- Run | Yrd Mat Mat Traps Triggered . | . . . Indirectly . | . . . Trap Hack Attempts . | . . . Triggered . | . . . Disarmed 4 | . 4 . Reprogrammed . | . . . Reused . | . . . Traps Extracted . | . . . Installed . | . . . Triggered . | . . . Machines | -11 -10 -9 ---------- Run | Yrd Mat Mat Machines Disabled 3 | . 3 . Max in Single Turn 1 | . 1 . Machines Repaired . | . . . Machines Dismantled . | . . . Machines Sabotaged . | . . . Overloaded Fab Kills . | . . . Hacking | -11 -10 -9 --------- Run | Yrd Mat Mat Machines Accessed 5 | . 5 . Terminals 4 | . 4 . Fabricators . | . . . Repair Stations . | . . . Recycling Units 1 | . 1 . Scanalyzers . | . . . Garrison Access . | . . . Total Hacks 12 | . 12 . Successful 4 | . 4 . Failed 7 | . 7 . Catastrophic 1 | . 1 . Database Lockouts 1 | . 1 . Manual 3 | . 3 . Terminals 10 | . 10 . Fabricators . | . . . Repair Stations . | . . . Recycling Units 2 | . 2 . Scanalyzers . | . . . Garrison Access . | . . . Terminal Hacks 4 | . 4 . Part Schematic 1 | . 1 . Prototype ID Bank 1 | . 1 . Terminal Index 1 | . 1 . Disarm Traps 1 | . 1 . Fabricator Hacks . | . . . Repair Station Hacks . | . . . Recycling Unit Hacks . | . . . Scanalyzer . | . . . Garrison Access Hacks . | . . . Unauthorized Hacks . | . . . Terminals . | . . . Fabricators . | . . . Repair Stations . | . . . Recycling Units . | . . . Scanalyzers . | . . . Garrison Access . | . . . Data Cores Recovered 1 | . 1 . Used . | . . . Hacking Detections 5 | . 5 . Full Trace Events 1 | . 1 . Feedback Events . | . . . Feedback Blocked . | . . . Robot Schematics Acquired . | . . . Robots Built . | . . . Authchips . | . . . Time . | . . . Total Robot Build Rating . | . . . Part Schematics Acquired 1 | . 1 . Parts Built . | . . . Authchips . | . . . Time . | . . . Total Part Build Rating . | . . . Parts Repaired . | . . . Time . | . . . Parts Recycled . | . . . Recycled Matter . | . . . Retrieved Matter . | . . . Retrieved Components . | . . . Parts Scanalyzed . | . . . Part Schematics Acquired . | . . . Parts Damaged . | . . . Bothacking | -11 -10 -9 ------------ Run | Yrd Mat Mat Used RIF Installer . | . . . Robots Hacked . | . . . Non-combat . | . . . Combat . | . . . Robot Hacks Applied . | . . . Relay Couplers Released . | . . . Fabnet Peak Effective % . | . . . Robots Rewired . | . . . Allies Hacked . | . . . Hacks Repelled . | . . . Allies | -11 -10 -9 -------- Run | Yrd Mat Mat Total Allies . | . . . Largest Group . | . . . Highest-Rated Group . | . . . Highest-Rated Ally . | . . . Total Orders . | . . . Ally Attacks . | . . . Total Damage . | . . . Kills . | . . . Allies Corrupted . | . . . Allies Melted . | . . . Intel | -11 -10 -9 ------- Run | Yrd Mat Mat Robot Analysis Total . | . . . Derelict Logs Recovered . | . . . Drone Launches . | . . . Drone Recoveries . | . . . Exploration | -11 -10 -9 ------------- Run | Yrd Mat Mat Turns Passed 1190 | 3 1107 80 Spaces Moved 1004 | 1 833 170 Core . | . . . Treads . | . . . Legs 504 | 1 503 . Wheels 330 | . 330 . Hover . | . . . Flight 170 | . . 170 Fastest Speed 34 | 120 80 34 Average Speed 92 | 120 104 34 Slowest Speed 190 | 120 190 34 Overloaded Moves . | . . . Propulsion Burnouts . | . . . Robots Hopped 4 | . . 4 Cave-ins Triggered . | . . . Exploration Rate (%) 41 | 2 98 25 Regions Visited 2 Branch Regions . Pre-discovered Areas . | . . . Known Exits Taken . | . . . Unknown Exits Taken 2 | 1 1 . Scrap Searched . | . . . Spaces Dug . | . . . Terrain Destroyed . | . . . Melee . | . . . Projectile . | . . . AOE . | . . . Terrain Rammed . | . . . Walls Destroyed . | . . . Machines Disabled . | . . . Actions | -11 -10 -9 --------- Run | Yrd Mat Mat Total 1151 | 3 962 186 Wait 49 | . 41 8 Move 994 | . 832 162 Hop 4 | . . 4 Pick Up 11 | . 9 2 Fast Attach 3 | . 3 . Attach 8 | . 4 4 Detach 2 | . . 2 Swap 3 | 1 . 2 Drop 4 | 2 1 1 Fire 72 | . 72 . Melee 1 | . . 1 Ram . | . . . Kick . | . . . Crush . | . . . Escape Stasis . | . . . Rewire . | . . . Trap . | . . . Miscellaneous . | . . . Route ------- -11/Scrapyard -10/Materials (discovered 5 exits: [*Mat x3] / [*Min x2]) -9/Materials History --------- Turn | Location | Event 4 | -11/Scrapyard | Discovered new exit (range 0) 4 | -11/Scrapyard | Entered Materials 296 | -10/Materials | Discovered new exit (range 11) 300 | -10/Materials | Build established: Mutant 316 | -10/Materials | Central database locked down 395 | -10/Materials | Discovered new exit (range 9) 540 | -10/Materials | Discovered new exit (range 12) 581 | -10/Materials | Core integrity fell below 50% 790 | -10/Materials | Discovered new exit (range 18) 841 | -10/Materials | Lost 3 parts (2n1w) 850 | -10/Materials | Discovered new exit (range 14) 1111 | -10/Materials | Entered another Materials area 1111 | -9/Materials | Evolved 2 slots: Propulsion x1, Utility x1 1191 | -9/Materials | Self-destructed Last Messages --------------- 00966_ K-01 Serf cleans the Atomic Centrifuge. 00968_ Acquired Weight Redist. System. 00974_ K-01 Serf collects debris. 00980_ Atomic Centrifuge disabled. 01037_ K-01 Serf cleans the Neutrino Reactor. 01051_ K-01 Serf collects debris. 01091_ W-16 Scout destroyed. 01103_ R-06 Scavenger collects Signal Interpreter. PARAMETERS=PROPULSION+1,UTILITY+1 LOCATION=UNKNOWN GOAL=ESCAPE 01118_ Dropped Aluminum Leg. 01123_ Acquired Axe. 01135_ Critical hit (Burn: +37). 01148_ K-01 Serf collects debris. 01151_ K-01 Serf cleans the Fusion Modulator. 01155_ K-01 Serf collects debris. 01181_ W-16 Scout sends out distress signal. 01183_ Acquired Hcp. Storage Unit. 01190_ Flight Unit destroyed. Map ----- +----------------------------------------------------+ | ?????????????????????????????????????????????????? | | ?????????????????????????????????????????????????? | | ???????????? ???????????????????????????????????? | | ????????????# ???????????????????????????????????? | | ????????????# ??????????????????????????????????? | | ????????????# ??????????????????????????????????? | | ????????????# ?????????????????????????????????? | | ???????????##^ "?????????????????????????????????? | | ??????????? "?????????????????????????????????? | | ???????????? "?????????????????????????????????? | | ????????????? ?????????????????????????????????? | | ????????????? ?????????????????????????????????? | | ?????????????? ?????????????????????????????????? | | ???????????####/#####????????????????????????????? | | ???????????# ####+#####???????????????????? | | ?#?????????# # #???????????????????? | | # ##???????# #""" #???????????????????? | | #???????# !!! #""" #???????????????????? | | " #???????# !!! #""" #???????????????????? | | " #???????# !! # #???????????????????? | | " #???????# #""" ] #???????????????????? | | #???????# #""" ##??????????????????? | | ! #???????# #??" #??????????????????? | | ! #???????####+#####???? #???????????????????? | | ! #??????????# ###########+####?????????????????? | | #######????# Y@ #???????????####### | | #/## #????# #####/##### #????#####??# | | ###### #?# #?#???##!!!!#?# | | #?#""" [ #?????#! !?# | | ### #?#""" #?????# ?# | | #/## #?# ###""" # ##### #??# | | ## ##?# + # #??# | | ## #??###########+####### #??####### | | ## ########### ##### ####### | | ## + # # | | + ########### + | | ######+######?????# # ######### ## # | | # #?????# ## ##?????####+### # | | # #?????# ## ######## #[[]]/ # | | # """"""" [#?????######### + #[[]]//# | | # """"""" #?????????????########## ######## | | # """"""" #??????????????????????# """ #??????? | | # """"""" #??????????????????????# """ #??????? | | # """"""" #??????????????????????# """ #??????? | | #???###???###??????????????????????########??????? | | | | | | | | | | | +----------------------------------------------------+ Best States ------------- Heat Dissipation 28 Energy Generation 10 Energy Capacity 250 Matter Stores 300 Matter Capacity 300 Sight Range 18 Terrain Scan Density 10 Additional Mass Support 6 Evasion (%) 63 Item Schematics ----------------- Flight Unit | -10/Materials | Hacked Robot Schematics ------------------ None Fabricated ------------ Nothing Alien Tech Used ----------------- None Achievements -------------- None Challenges ------------ None Game ------ Seed CorruptionFusionPurifier Manual? 0 Play Time 00:14:16 Cumulative 259.2 hours Start 2024.03.13 @ 11:24:21 End 2024.03.13 @ 11:51:11 Sessions 1 Manual Loads 0 Difficulty Rogue Special Mode None Game No. 113 Rogue 73 Adventurer 29 Explorer 11 Win Type - Total 11 Types 6/0/1/2/0/0/1/0/1 Lore% 60 Gallery% 78 Achievement% 76 Wizard Run 0 Options --------- Layout 0 ASCII 0 Keyboard 0 Movement Numpad Keybinds 0 Fullscreen 2 Font 24/Smallcaps Map View 76x50 Zoom Use 0% Tactical HUD 1 Map Filters NONE Filters LOW_CONTRAST(13,24,33) Steam 1 RUN: 659fb0f0-95b9-487f-91aa-9c51e6f1449c